bitfinex/quotes_ETHUSD_20220106
["timestamp","ask_amount","ask_price","bid_price","bid_amount"]
[1641460306691,1.0365688,3388.6,3388.2,0.0022737]
[1641460306890,0.3,3388.6,3388.3,0.00096952]
[1641460307093,0.00113684,3388.8,3388.3,0.00096952]
[1641460307294,5.9022,3388.7,3388.3,0.00096952]
[1641460307697,2.90113684,3388.8,3388.3,0.00096952]
[1641460307895,3.63905684,3388.8,3388.3,0.00096952]
[1641460308296,5.9022,3388.7,3388.3,0.00096952]
[1641460308494,6.2022,3388.7,3388.3,0.00096952]
[1641460308896,0.73803,3388.6,3388.3,0.00096952]
[1641460309195,0.3,3388.4,3388.3,0.00096952]
[1641460309435,6.2022,3388.4,3388.3,0.00096952]
[1641460309641,6.2022,3388.4,3388.3,0.00267479]
[1641460314488,11.2022,3388.4,3388.3,0.00267479]
[1641460315893,11.18553561,3388.4,3388.3,0.00267479]
[1641460318145,10.9022,3388.4,3388.3,0.00267479]
[1641460318544,13.8022,3388.4,3388.3,0.00267479]
[1641460319946,14.1022,3388.4,3388.3,0.00267479]
[1641460320351,14.7224,3388.4,3388.2,3.33253781]
[1641460320797,14.7224,3388.4,3387.9,7.409e-05]
[1641460320798,0.73828,3388.1,3387.9,7.409e-05]
[1641460320996,1.03828,3388.1,3387.7,2.97371113]
[1641460321195,1.03828,3388.1,3388.0,0.00170527]
[1641460321196,3.39309058,3388.1,3388.0,0.00170527]
[1641460321399,4.39309058,3388.1,3388.0,0.00170527]
[1641460321598,10.29529058,3388.1,3387.2,0.00625266]
[1641460321797,0.73832,3387.7,3387.2,0.00625266]
[1641460321998,0.73831,3387.5,3387.2,0.00625266]
[1641460322200,0.3,3387.4,3387.2,0.00625266]
[1641460322401,7.8502903,3387.3,3387.2,0.00625266]
[1641460322600,7.8502903,3387.3,3386.9,0.00795793]
[1641460322601,5.9022,3387.3,3386.9,0.00795793]
[1641460322797,5.9022,3387.3,3386.8,0.351]
[1641460323001,5.9022,3387.3,3386.9,17.13]
[1641460323197,5.9022,3387.3,3387.0,1.0]
[1641460323398,5.9022,3387.3,3387.0,7.17738951]
[1641460323603,5.9022,3387.3,3387.1,0.00682108]
[1641460324101,5.0,3388.4,3387.2,0.05003617]
[1641460324346,5.0,3388.4,3388.1,0.01261518]
[1641460324543,5.0,3388.4,3388.3,0.8858]
[1641460324749,5.0,3388.4,3388.3,5.9358]
[1641460324750,10.9026,3388.4,3388.3,5.9358]
[1641460325045,10.9026,3388.4,3388.3,1.1858]
[1641460325247,10.9026,3388.4,3388.3,2.1858]
[1641460325849,10.9026,3388.4,3388.3,19.3158]
[1641460326048,10.9026,3388.4,3388.3,23.9068588]
[1641460326249,10.9026,3388.4,3388.3,6.7768588]
[1641460327049,10.9026,3388.4,3388.3,2.1858]
[1641460327549,10.9026,3388.4,3388.3,1.1858]
[1641460327751,10.9026,3388.4,3388.3,3.03199568]
[1641460327951,7.8962,3388.4,3388.3,20.51299568]
[1641460328200,10.74990666,3388.4,3388.3,21.51299568]
[1641460328394,9.48320666,3388.4,3388.3,21.51299568]
[1641460328797,9.48320666,3388.4,3388.3,29.37723775]
[1641460329599,0.00113684,3388.8,3388.5,0.8858]
[1641460329600,3.684e-05,3388.8,3388.5,0.8858]
[1641460329798,3.8747,3390.4,3388.5,0.8858]
[1641460329799,3.8747,3390.4,3388.7,18.02870419]
[1641460329999,3.8747,3390.4,3388.9,0.8858]
[1641460330198,5.9005,3390.3,3389.3,0.8858]
[1641460330400,5.9005,3390.3,3389.5,0.8858]
[1641460330599,5.9005,3390.3,3390.1,1.93388834]
[1641460330600,0.0096632,3390.2,3390.1,1.93388834]
[1641460330804,1.91070133,3390.2,3390.1,1.93388834]
[1641460331002,1.91070133,3390.2,3390.1,2.23388834]
[1641460331202,7.81120133,3390.2,3390.1,2.23388834]
[1641460331403,7.81120133,3390.2,3390.1,3.23388834]
[1641460332149,7.82266928,3390.2,3390.1,3.23388834]
[1641460332948,5.92163115,3390.2,3390.1,3.23388834]
[1641460333148,5.92163115,3390.2,3390.1,3.97128834]
[1641460333351,5.92163115,3390.2,3390.1,21.10128834]
[1641460333947,5.92163115,3390.2,3390.1,21.45228834]
[1641460334150,0.02421115,3390.2,3390.1,23.42924022]
[1641460334348,1.87033179,3392.2,3390.9,0.8858]
[1641460334549,1.87033179,3392.2,3391.9,0.8858]
[1641460334550,3.6952,3392.1,3391.9,0.8858]
[1641460334747,1.87033179,3392.2,3391.9,0.8858]
[1641460335149,0.01080005,3392.1,3391.9,0.8858]
[1641460335451,1.87033179,3392.2,3392.0,18.0158]
[1641460335903,5.90680005,3392.1,3392.0,0.8858]
[1641460336299,5.896,3392.1,3392.0,0.8858]
[1641460337101,5.896,3392.1,3390.9,1.0]
[1641460337301,5.896,3392.1,3390.4,1.2196]
[1641460337302,5.896,3392.1,3390.6,1.98174964]
[1641460337501,0.01023162,3392.0,3390.6,1.98174964]
[1641460337902,5.9056632,3391.9,3391.1,1.02805465]
[1641460338107,2.13589776,3391.6,3391.1,1.02805465]
[1641460338308,5.896,3391.5,3391.1,1.32805465]
[1641460338514,5.90338951,3391.5,3391.1,1.32805465]
[1641460338808,0.00682108,3391.4,3391.2,17.481]
[1641460339011,5.896,3391.3,3391.2,17.481]
[1641460339212,5.90225266,3391.3,3391.2,17.481]
[1641460339846,5.90225266,3391.3,3391.2,23.57768275]
[1641460340047,5.90225266,3391.3,3391.2,23.8462588]
[1641460341648,5.90225266,3391.3,3391.2,27.17575348]
[1641460343192,5.90225266,3391.3,3391.2,27.22582399]
[1641460343392,5.90225266,3391.3,3391.2,31.14104884]
[1641460343596,3.8787,3393.1,3393.0,1.20708498]
[1641460343798,3.26155974,3393.3,3393.0,1.20708498]
[1641460344801,5.8942,3393.2,3393.0,18.33708498]
[1641460345200,0.01023162,3393.1,3393.0,1.20708498]
[1641460345599,0.01023162,3393.1,3393.0,18.33708498]
[1641460345600,5.90443162,3393.1,3393.0,18.33708498]
[1641460347039,5.90443162,3393.1,3393.0,22.92814378]
[1641460348344,8.80443162,3393.1,3393.0,22.92814378]
[1641460348543,8.80443162,3393.1,3393.0,23.22814378]
[1641460348944,8.80443162,3393.1,3393.0,24.82509106]
[1641460349645,8.80443162,3393.1,3393.0,23.22814378]
[1641460350892,8.80443162,3393.1,3393.0,6.09814378]
[1641460351298,8.80443162,3393.1,3393.0,23.22814378]
[1641460351492,8.80443162,3393.1,3393.0,4.8910588]
[1641460351693,8.80443162,3393.1,3393.0,4.5910588]
[1641460352593,1.64129756,3393.0,3392.5,18.39726719]
[1641460352797,8.80443162,3393.1,3392.5,18.39726719]
[1641460352997,0.00909478,3392.9,3392.5,18.69726719]
[1641460353198,0.0096632,3393.0,3392.6,18.13]
[1641460353400,0.00852635,3392.8,3392.6,22.7210588]
[1641460353599,0.00909478,3392.9,3392.6,22.7210588]
[1641460353803,0.00795793,3392.7,3392.6,22.7210588]
[1641460353999,0.00852635,3392.8,3392.7,4.5910588]
[1641460354200,8.7942,3393.1,3392.7,4.5910588]
[1641460354441,14.0,3393.0,3392.3,2.99591729]
[1641460354642,0.01277553,3392.7,3392.3,2.99591729]
[1641460355043,5.90158951,3392.6,3392.3,2.99591729]
[1641460355243,1.80630105,3392.4,3392.3,2.99591729]
[1641460355445,0.00682108,3392.5,3392.3,2.99591729]
[1641460355645,5.90045266,3392.4,3391.7,18.50016628]
[1641460355845,5.90102108,3392.4,3391.7,1.37016628]
[1641460356045,0.00568424,3392.3,3391.7,1.37016628]
[1641460356452,0.00511581,3392.2,3391.7,1.37016628]
[1641460356648,0.00511581,3392.2,3391.8,0.73697]
[1641460356848,0.00454739,3392.1,3391.9,17.13]
[1641460357046,0.00454739,3392.1,3392.0,17.13]
[1641460357346,5.8942,3392.4,3392.0,17.43]
[1641460357845,5.8942,3392.4,3392.2,17.13]
[1641460357846,0.00568424,3392.3,3392.2,17.13]
[1641460358090,5.89988424,3392.3,3392.2,18.43]
[1641460358691,5.89988424,3392.3,3392.1,0.7369]
[1641460358892,5.89988424,3392.3,3391.9,5.20657729]
[1641460359095,0.00511581,3392.2,3392.0,0.3]
[1641460359391,0.00454739,3392.1,3391.9,2.99591729]
[1641460359593,0.00454739,3392.1,3391.9,3.29591729]
[1641460359796,8.7942,3392.3,3391.9,3.29591729]
[1641460359797,0.00397896,3392.0,3391.9,3.29591729]
[1641460360094,0.00397896,3392.0,3391.9,0.3]
[1641460360293,0.00397896,3392.0,3391.7,2.37016628]
[1641460360294,6.65122164,3392.3,3391.7,2.67016628]
[1641460360495,8.66573889,3392.3,3391.7,2.67016628]
[1641460360697,0.00113685,3392.2,3391.8,0.00113684]
[1641460361297,0.00113685,3392.2,3391.9,2.2108724]
[1641460361846,0.00113685,3392.2,3392.0,0.3]
[1641460362042,0.00113685,3392.2,3391.8,0.00113684]
[1641460362445,2.0019602,3392.0,3391.8,0.00113684]
[1641460362945,0.00113685,3392.2,3391.8,0.73811684]
[1641460363346,0.00113685,3392.2,3391.8,0.00113684]
[1641460364547,2.13775813,3392.1,3391.8,17.13113684]
[1641460364747,2.13775813,3392.1,3391.8,20.46021351]
[1641460365347,2.13775813,3392.1,3391.8,3.33021351]
[1641460365790,2.13775813,3392.1,3391.9,17.13]
[1641460366092,2.13775813,3392.1,3392.0,3.99503362]
[1641460366491,2.13775813,3392.1,3392.0,7.32411029]
[1641460367295,2.13775813,3392.1,3392.0,11.9965923]
[1641460367496,0.00113685,3392.2,3392.0,29.1265923]
[1641460368097,0.00113685,3392.2,3392.0,24.45411029]
[1641460368499,0.00113685,3392.2,3392.1,8.00155868]
[1641460368697,3.75235849,3392.2,3392.1,8.00155868]
[1641460368898,3.75235849,3392.2,3392.1,8.30155868]
[1641460369343,3.75235849,3392.2,3392.1,25.43155868]
[1641460373494,3.75235849,3392.2,3392.1,26.16846118]
[1641460374896,3.75235849,3392.2,3392.1,8.30155868]
[1641460375195,3.75235849,3392.2,3392.1,8.00155868]
[1641460375398,2.6579462,3392.3,3392.1,8.00155868]
[1641460375595,2.6579462,3392.3,3392.1,7.32402703]
[1641460375996,2.6579462,3392.3,3392.1,3.32907667]
[1641460376196,2.6579462,3392.3,3392.0,3.32907667]
[1641460376597,2.6579462,3392.3,3392.0,5.84003667]
[1641460376839,2.6579462,3392.3,3392.0,4.80304667]
[1641460377443,5.896,3392.2,3392.0,4.80304667]
[1641460377846,5.896,3392.2,3392.1,0.3]
[1641460378145,5.896,3392.2,3392.1,8.62385792]
[1641460378344,5.896,3392.2,3392.1,4.92907667]
[1641460378546,5.896,3392.2,3392.1,1.6]
[1641460379544,5.896,3392.2,3392.1,1.3]
[1641460379753,5.896,3392.2,3392.1,9.30155868]
[1641460380247,5.896,3392.2,3392.1,9.60155868]
[1641460380894,5.8950221,3392.2,3392.1,6.92632529]
[1641460381492,5.8950221,3392.2,3392.1,4.92907667]
[1641460381793,5.8950221,3392.2,3392.1,4.62907667]
[1641460381997,13.75,3392.1,3392.0,6.66973063]
[1641460382200,13.75,3392.1,3391.7,1.73160976]
[1641460382201,2.28786937,3392.0,3391.7,1.73160976]
[1641460382400,0.01227484,3391.8,3391.5,3.99449723]
[1641460382600,0.01227484,3391.8,3391.5,2.09189723]
[1641460382799,8.08794948,3391.7,3391.6,2.09189723]
[1641460383698,8.08794948,3391.7,3391.1,4.99735476]
[1641460383899,8.08794948,3391.7,3390.5,1.73738]
[1641460384101,5.8950221,3391.7,3391.2,0.00454739]
[1641460384546,5.8950221,3391.7,3391.1,0.00511582]
[1641460385352,2.2285562,3391.6,3391.1,0.00511582]
[1641460385752,5.8950221,3391.5,3390.7,0.00738951]
[1641460385952,3.6665221,3391.5,3391.1,1.47436]
[1641460386251,3.6665221,3391.5,3391.3,0.73715]
[1641460386452,3.6665221,3391.5,3391.4,1.2033354]
[1641460386652,3.6665221,3391.5,3391.4,1.50674595]
[1641460386852,3.6665221,3391.5,3391.4,0.30341055]
[1641460387055,3.6665221,3391.5,3391.4,0.00341055]
[1641460387354,3.6665221,3391.5,3391.3,0.00397897]
[1641460389192,3.6165221,3391.5,3391.3,0.00397897]
[1641460389393,6.5165221,3391.5,3391.3,0.00397897]
[1641460389797,6.5165221,3391.5,3391.4,0.73711]
[1641460389998,6.5165221,3391.5,3391.3,0.30397897]
[1641460390202,6.5165221,3391.5,3391.4,0.00341055]
[1641460392050,6.5165221,3391.5,3391.3,0.00397897]
[1641460392647,6.5165221,3391.5,3391.3,1.04111897]
[1641460392855,6.5165221,3391.5,3391.4,17.51789948]
[1641460393050,6.5165221,3391.5,3391.4,17.57132484]
[1641460393349,6.0109221,3391.5,3391.4,18.57132484]
[1641460393549,6.00306621,3391.5,3391.4,18.57132484]
[1641460393748,6.00306621,3391.5,3391.4,20.38939762]
[1641460393950,4.12616621,3391.5,3391.4,20.38939762]
[1641460394151,4.12616621,3391.5,3391.4,24.19529467]
[1641460394152,3.59675869,3391.5,3391.4,24.19529467]
[1641460394351,14.5257,3393.1,3392.2,0.7369]
[1641460394552,0.4849151,3393.3,3392.6,0.7369]
[1641460394756,0.00568423,3393.0,3392.6,1.0369]
[1641460395157,0.00511581,3392.9,3392.6,2.0369]
[1641460395590,0.00454738,3392.8,3392.6,2.0369]
[1641460395889,0.4849151,3393.3,3392.6,2.0369]
[1641460395890,0.00397896,3392.7,3392.6,2.0369]
[1641460397291,0.00397896,3392.7,3392.6,1.3]
[1641460397492,0.00397896,3392.7,3392.4,0.3]
[1641460397696,0.00397896,3392.7,3392.2,1.47379]
[1641460397905,1.92541712,3393.0,3392.2,1.77379]
[1641460397906,0.00341054,3392.6,3392.2,1.77379]
[1641460398299,0.00284211,3392.5,3392.2,1.77379]
[1641460398702,0.00227369,3392.4,3392.3,1.16530589]
[1641460399343,0.00227369,3392.4,3392.3,2.16530589]
[1641460399750,0.00227369,3392.4,3392.3,2.90223589]
[1641460400849,0.00227369,3392.4,3392.3,20.03223589]
[1641460401548,0.00227369,3392.4,3392.3,2.90223589]
[1641460401747,0.00227369,3392.4,3392.3,1.0]
[1641460401950,0.00227369,3392.4,3391.7,0.02586179]
[1641460402151,0.01206209,3392.3,3391.7,0.02586179]
[1641460402352,0.00170527,3392.3,3391.8,0.00113685]
[1641460402551,0.00113684,3392.2,3391.8,0.00113685]
[1641460402954,3.5903663,3392.6,3391.8,0.00113685]
[1641460403191,0.00341054,3392.6,3391.8,0.00113685]
[1641460403392,1.6595676,3392.7,3391.8,0.00113685]
[1641460403393,0.00284211,3392.5,3391.8,0.00113685]
[1641460403593,0.00284211,3392.5,3391.3,0.00397897]
[1641460403795,0.00227369,3392.4,3391.3,0.00397897]
[1641460403994,3.5823412,3392.4,3391.3,0.00397897]
[1641460404197,0.01146098,3392.5,3391.3,0.00397897]
[1641460404198,0.00170527,3392.3,3391.3,0.00397897]
[1641460404396,0.351,3392.2,3391.3,0.00397897]
[1641460404598,4.23454711,3392.1,3391.1,0.00511582]
[1641460404797,4.23454711,3392.1,3390.8,0.00682109]
[1641460404798,2.02915453,3392.0,3390.8,0.00682109]
[1641460404997,1.74749868,3390.9,3390.8,0.00682109]
[1641460405399,1.74749868,3390.9,3390.8,1.98980619]
[1641460405797,1.74749868,3390.9,3390.8,0.00682109]
[1641460406398,1.74749868,3390.9,3390.7,0.00738951]
[1641460406700,1.74749868,3390.9,3390.4,2.97447765]
[1641460406701,7.7,3390.8,3390.4,2.97447765]
[1641460406948,7.7,3390.8,3390.1,3.96674155]
[1641460406949,7.3,3390.8,3390.1,3.96674155]
[1641460407151,7.3,3390.8,3390.5,0.00113685]
[1641460407152,0.7376146,3390.8,3390.5,0.00113685]
[1641460407349,7.21649868,3390.9,3390.5,0.00113685]
[1641460408251,0.16650901,3390.7,3390.5,0.00113685]
[1641460408648,9.01e-06,3390.7,3389.6,0.00625266]
[1641460408851,9.01e-06,3390.8,3389.7,3.96674155]
[1641460409149,9.01e-06,3390.8,3389.8,1.00511581]
[1641460409349,9.01e-06,3390.8,3389.9,0.73745]
[1641460409350,2.28922165,3390.8,3389.9,0.73745]
[1641460409655,2.28921264,3390.8,3390.0,3.97072051]
[1641460409852,6.35791264,3390.9,3390.0,3.97072051]
[1641460410054,6.35791264,3390.9,3390.5,1.14422435]
[1641460410055,5.0,3390.9,3390.5,1.14422435]
[1641460410254,5.0,3390.9,3390.8,0.01283816]
[1641460410699,5.00113684,3390.9,3390.8,0.01283816]
[1641460410903,3.4135206,3392.4,3390.8,0.01283816]
[1641460411101,3.8913,3392.1,3391.1,0.73717]
[1641460411299,2.22641577,3391.6,3391.1,1.03717]
[1641460411700,0.00341055,3391.5,3391.1,1.03717]
[1641460411902,0.00341055,3391.5,3391.2,0.73717]
[1641460412100,0.00284212,3391.4,3391.3,1.0371666]
[1641460413903,0.00284212,3391.4,3391.3,14.6741966]
[1641460414100,0.00284212,3391.4,3391.3,32.8041966]
[1641460414346,0.00284212,3391.4,3391.3,20.2041966]
[1641460416349,0.00284212,3391.4,3391.3,23.19188705]
[1641460416750,1.45887584,3393.0,3392.4,1.23401717]
[1641460416952,1.94530467,3393.2,3392.6,0.73684]
[1641460417151,1.94530467,3393.2,3392.1,1.47367]
[1641460417152,0.00625266,3392.5,3392.1,1.47367]
[1641460417351,0.00625266,3392.5,3392.2,1.0]
[1641460417552,0.00568424,3392.4,3392.1,2.47367]
[1641460417750,0.00568424,3392.4,3392.3,1.86368391]
[1641460417951,0.00511582,3392.3,3392.0,1.99157376]
[1641460418197,3.85056068,3393.0,3392.0,1.99157376]
[1641460418198,0.00568424,3392.4,3392.0,1.99157376]
[1641460418396,3.85056068,3393.0,3392.0,1.99157376]
[1641460418397,0.00454739,3392.2,3392.0,1.99157376]
[1641460418601,0.00511582,3392.3,3392.0,1.99157376]
[1641460418805,0.00397897,3392.1,3391.3,1.99157376]
[1641460419003,2.06632632,3392.1,3391.3,3.02159358]
[1641460419202,0.00341054,3392.0,3391.6,0.7370643]
[1641460419402,1.94478755,3392.9,3391.6,0.7370643]
[1641460419704,1.45653436,3392.6,3391.7,0.00170527]
[1641460420001,0.00284212,3392.5,3391.6,0.00227369]
[1641460420202,2.01406269,3392.4,3391.6,1.00227369]
[1641460420403,2.01633639,3392.4,3391.7,17.13]
[1641460420602,0.00170528,3392.3,3391.8,1.0]
[1641460420805,0.00170528,3392.3,3392.2,17.13]
[1641460421002,1.45653436,3393.0,3392.2,17.13]
[1641460421205,1.45653436,3393.0,3392.8,1.04184754]
[1641460421416,0.00511582,3392.9,3392.2,18.18001481]
[1641460421602,2.17637681,3392.9,3392.3,1.0]
[1641460421848,0.00454739,3392.8,3392.7,1.4735182]
[1641460422056,0.00454739,3392.8,3392.7,1.7735182]
[1641460425055,0.00454739,3392.8,3392.7,18.9035182]
[1641460425594,0.00454739,3392.8,3392.7,19.9035182]
[1641460425796,0.00454739,3392.8,3392.7,20.6402733]
[1641460426406,0.00454739,3392.8,3392.7,0.7367551]
[1641460426607,0.00454739,3392.8,3392.3,3.68229646]
[1641460427003,0.00397897,3392.7,3392.3,3.68229646]
[1641460427403,0.00341055,3392.6,3392.1,1.06933334]
[1641460427605,0.00341055,3392.6,3392.1,20.41019664]
[1641460427803,0.00341055,3392.6,3392.1,2.54323664]
[1641460427804,0.00284212,3392.5,3392.1,2.54323664]
[1641460428003,0.00284212,3392.5,3392.1,1.4739033]
[1641460428206,0.0022737,3392.4,3391.8,0.00113684]
[1641460428604,0.00170528,3392.3,3391.8,0.00113684]
[1641460428805,0.00170528,3392.3,3391.6,0.00227369]
[1641460429107,0.00113685,3392.2,3391.6,0.00227369]
[1641460429348,1.72966872,3391.9,3391.8,3.32877664]
[1641460429748,1.72966872,3391.9,3391.8,3.32991348]
[1641460430148,0.00284212,3392.5,3391.8,0.00113684]
[1641460430548,0.0022737,3392.4,3391.7,18.13170527]
[1641460430949,0.00170528,3392.3,3391.8,3.32991348]
[1641460431151,0.00170528,3392.3,3391.9,1.0]
[1641460431349,3.8952,3392.7,3392.0,17.13]
[1641460431350,0.00113685,3392.2,3392.0,17.13]
[1641460431549,0.00113685,3392.2,3392.1,1.0]
[1641460431753,0.00341055,3392.6,3392.1,18.13]
[1641460431951,0.00113685,3392.2,3392.0,3.32877664]
[1641460432150,0.00284212,3392.5,3392.1,1.0]
[1641460432450,0.0022737,3392.4,3392.1,18.13]
[1641460432850,0.00170528,3392.3,3392.1,18.13]
[1641460433091,0.00170528,3392.3,3392.2,0.73695]
[1641460433301,3.67438222,3394.1,3392.6,1.04863807]
[1641460433494,3.87319876,3394.0,3393.1,0.05001481]
[1641460433694,2.23709104,3394.9,3394.2,0.15383]
[1641460433894,2.23709104,3394.9,3394.7,0.8858]
[1641460434093,0.05952749,3394.9,3394.7,0.8858]
[1641460434493,0.6917151,3395.4,3394.8,0.01273448]
[1641460434698,0.6917151,3395.4,3394.7,0.8858]
[1641460434898,0.01875798,3395.3,3394.7,0.8858]
[1641460435297,0.01818956,3395.2,3394.7,0.8858]
[1641460435699,0.01762113,3395.1,3394.7,0.8858]
[1641460436097,0.01705271,3395.0,3394.7,0.8858]
[1641460436296,0.01705271,3395.0,3394.9,0.8858]
[1641460436497,0.6917151,3395.4,3394.9,0.8858]
[1641460436946,0.01875798,3395.3,3394.9,4.21457664]
[1641460437344,0.6917151,3395.4,3394.9,4.21457664]
[1641460437345,0.01818956,3395.2,3394.9,4.21457664]
[1641460437743,0.01762113,3395.1,3394.9,4.21457664]
[1641460438147,0.6917151,3395.4,3395.0,1.8858]
[1641460438548,0.01875798,3395.3,3395.0,0.8858]
[1641460438750,0.01875798,3395.3,3395.2,0.8858]
[1641460439049,0.6917151,3395.4,3395.2,0.8858]
[1641460440049,0.6917151,3395.4,3395.1,3.32877664]
[1641460440050,3.33997632,3395.7,3395.3,4.21457664]
[1641460440251,2.22329814,3396.1,3395.3,4.21457664]
[1641460440451,0.02046325,3395.6,3395.3,4.21457664]
[1641460440707,2.10685278,3395.5,3395.3,4.21457664]
[1641460440907,14.0,3395.4,3394.6,0.02585405]
[1641460441106,0.0193264,3395.4,3394.6,0.02585405]
[1641460441306,0.01875798,3395.3,3394.6,0.02585405]
[1641460441712,0.01818956,3395.2,3394.6,0.02585405]
[1641460442013,0.01762113,3395.1,3394.6,0.02585405]
[1641460442407,0.01705271,3395.0,3394.6,0.02585405]
[1641460442809,0.01648429,3394.9,3394.6,0.02585405]
[1641460443209,0.01591586,3394.8,3394.7,0.29196943]
[1641460443808,0.01591586,3394.8,3394.7,2.28791294]
[1641460444007,0.0168831,3394.8,3394.7,2.28791294]
[1641460444853,0.0168831,3394.8,3394.7,0.29196943]
[1641460445654,0.3,3395.4,3394.7,0.29196943]
[1641460446057,0.00284212,3395.3,3394.8,0.29196943]
[1641460446454,0.06538606,3395.4,3395.3,0.00056243]
[1641460446659,2.10685278,3395.5,3395.3,0.00056243]
[1641460446854,2.02038962,3395.5,3395.3,0.00056243]
[1641460447858,1.92038962,3395.5,3395.3,0.00056243]
[1641460448095,0.3,3395.4,3395.3,0.00056243]
[1641460448698,0.2,3395.4,3395.3,0.00056243]
[1641460450101,1.92038962,3395.5,3395.3,0.00056243]
[1641460451102,0.3,3395.4,3395.3,0.00056243]
[1641460451843,1.92038962,3395.5,3395.3,0.00056243]
[1641460454455,0.00085935,3395.4,3395.3,0.00056243]
[1641460455253,0.00085935,3395.4,3395.3,0.29253186]
[1641460456503,0.00085935,3395.4,3395.3,1.67016633]
[1641460457205,0.00085935,3395.4,3395.3,0.29253186]
[1641460457405,3.73560913,3396.8,3395.3,0.29253186]
[1641460457711,0.00397897,3396.7,3395.4,0.00341054]
[1641460458106,0.00341054,3396.6,3395.4,0.00341054]
[1641460458507,1.64589013,3395.8,3395.4,0.00341054]
[1641460459107,1.64589013,3395.8,3395.7,0.29196943]
[1641460459361,0.30284212,3396.5,3395.7,0.29196943]
[1641460459561,0.30284212,3396.5,3395.8,0.29196943]
[1641460459760,0.0022737,3396.4,3395.8,0.29310627]
[1641460460161,0.3,3396.5,3395.8,0.29310627]
[1641460460162,0.00170527,3396.3,3395.8,0.29310627]
[1641460460366,1.97181438,3396.2,3395.8,0.29310627]
[1641460460665,2.27295123,3396.2,3395.8,0.29310627]
[1641460461563,2.27295123,3396.2,3396.0,0.29196943]
[1641460462364,2.27295123,3396.2,3396.1,3.61806857]
[1641460463611,2.27295123,3396.2,3396.1,0.29196943]
[1641460464110,1.97295123,3396.2,3396.1,0.29196943]
[1641460464812,1.97295123,3396.2,3395.8,0.00113684]
[1641460465211,1.97295123,3396.2,3395.7,0.00170527]
[1641460465411,1.97295123,3396.2,3395.8,0.29196943]
[1641460466012,2.27295123,3396.2,3395.8,0.29196943]
[1641460466411,2.27295123,3396.2,3395.9,3.32622541]
[1641460466611,2.27295123,3396.2,3396.0,0.29196943]
[1641460467872,1.97295123,3396.2,3396.1,3.61819484]
[1641460468068,2.27295123,3396.2,3396.1,3.61819484]
[1641460468771,2.27295123,3396.2,3396.1,0.29196943]
[1641460468971,6.02295123,3396.2,3396.1,0.29196943]
[1641460470071,2.27295123,3396.2,3396.1,0.29196943]
[1641460472106,5.57295123,3396.2,3396.1,0.29196943]
[1641460472306,2.27295123,3396.2,3396.1,0.29196943]
[1641460474755,2.27295123,3396.2,3395.7,0.00170527]
[1641460474951,0.73644,3396.1,3395.7,0.00170527]
[1641460475152,0.3,3396.0,3395.4,0.00341054]
[1641460475552,1.77403685,3396.2,3395.4,3.32961166]
[1641460475753,1.77403685,3396.2,3395.5,0.29196943]
[1641460475953,1.77403685,3396.2,3395.5,0.29481154]
[1641460476157,1.77403685,3396.2,3395.6,0.00227369]
[1641460476755,0.73645,3395.9,3395.6,0.00227369]
[1641460476955,1.83898708,3395.7,3395.6,0.00227369]
[1641460477156,1.83898708,3395.7,3395.6,3.62044424]
[1641460477957,1.83898708,3395.7,3394.6,3.9914705]
[1641460477958,5.36394749,3394.7,3394.6,3.9914705]
[1641460478201,5.36394749,3394.7,3394.6,0.28784285]
[1641460478396,0.76305511,3394.5,3394.2,1.47302]
[1641460478602,0.76305511,3394.5,3394.4,2.89114858]
[1641460478803,5.7,3394.5,3394.1,4.98933812]
[1641460479000,6.0,3394.5,3394.1,4.98933812]
[1641460479198,0.73689,3394.4,3392.8,3.725]
[1641460479399,0.73689,3394.4,3392.8,6.85232246]
[1641460479600,0.3,3394.3,3394.2,0.00227369]
[1641460479800,1.90942635,3394.3,3394.2,0.00227369]
[1641460480003,0.73686,3394.3,3394.2,0.00227369]
[1641460480204,0.73665,3394.6,3394.1,1.13115994]
[1641460480403,0.73665,3394.6,3393.6,17.13568423]
[1641460480404,0.73665,3394.6,3393.7,0.01222171]
[1641460480604,3.17709898,3394.7,3393.7,0.01222171]
[1641460480906,3.17709898,3394.7,3393.8,0.00454738]
[1641460481103,2.10436388,3394.3,3393.8,0.00454738]
[1641460481313,0.73679,3394.2,3393.8,0.00454738]
[1641460481703,0.73679,3394.2,3393.4,1.28688794]
[1641460481956,0.73679,3394.2,3393.5,0.00625265]
[1641460482355,0.3,3394.1,3393.5,0.00625265]
[1641460482556,0.73681,3394.0,3393.5,0.00625265]
[1641460482756,0.73681,3394.0,3393.3,0.0073895]
[1641460482956,0.3,3394.1,3393.3,0.0073895]
[1641460483356,0.9,3394.2,3393.3,0.0073895]
[1641460483560,0.6,3394.2,3393.3,0.0073895]
[1641460483960,0.6,3394.2,3393.4,2.24418511]
[1641460484258,0.6,3394.2,3393.5,0.00625265]
[1641460484859,0.73678,3394.2,3393.5,0.00625265]
[1641460485703,3.17709898,3394.7,3393.9,1.0508648]
[1641460485904,3.17709898,3394.7,3393.5,17.13625265]
[1641460485905,3.17709898,3394.7,3393.5,20.34123837]
[1641460486105,3.17709898,3394.7,3394.0,0.00341054]
[1641460486306,3.17709898,3394.7,3393.6,0.00568423]
[1641460486505,3.17709898,3394.7,3394.2,0.7365693]
[1641460486904,3.17709898,3394.7,3394.3,0.00170527]
[1641460487102,0.3,3394.6,3394.3,0.00170527]
[1641460488705,1.7734,3394.6,3394.3,0.00170527]
[1641460488905,1.0367,3394.6,3393.6,0.00568423]
[1641460489109,1.94129165,3393.9,3393.6,0.00568423]
[1641460489347,1.47357,3394.4,3393.6,0.00568423]
[1641460489752,1.77357,3394.4,3393.7,1.99097922]
[1641460489954,0.73675,3394.2,3393.7,1.99097922]
[1641460490152,0.73675,3394.2,3393.8,0.00454738]
[1641460490353,1.9339276,3394.1,3393.8,0.00454738]
[1641460491054,1.9339276,3394.1,3393.7,0.00511581]
[1641460491456,0.7368,3394.0,3393.7,0.00511581]
[1641460492655,0.7368,3394.0,3393.6,0.00568423]
[1641460493908,1.4736,3394.0,3393.6,1.99666345]
[1641460494110,0.73683,3393.9,3393.6,1.99666345]
[1641460494312,0.73683,3393.9,3393.7,0.00511581]
[1641460494911,0.73689,3393.5,3393.3,2.98650304]
[1641460495113,2.16663088,3393.4,3393.3,2.98650304]
[1641460495311,0.73689,3393.5,3393.4,0.00170527]
[1641460495510,0.74215,3393.6,3393.4,0.00170527]
[1641460495710,0.74215,3393.6,3392.8,0.00511581]
[1641460495711,0.3,3393.5,3392.8,0.00511581]
[1641460496111,0.0051,3393.6,3392.8,0.00511581]
[1641460496312,2.15874573,3393.4,3392.8,0.00511581]